bitfinex-derivatives/quotes_BTCF0:USTF0_20250416
["timestamp","ask_amount","ask_price","bid_price","bid_amount"]
[1744846619049,0.5124546,84214.0,84213.0,0.03248]
[1744846621463,0.5124546,84214.0,84213.0,0.00108]
[1744846622858,0.5124546,84214.0,84213.0,0.001]
[1744846623261,0.5124546,84214.0,84213.0,0.00108]
[1744846626061,0.9238546,84214.0,84213.0,0.00108]
[1744846629265,0.8919546,84214.0,84213.0,0.119836]
[1744846629469,0.4124,84214.0,84213.0,0.119836]
[1744846629670,0.07569809,84229.0,84213.0,0.25108]
[1744846629871,0.0593686,84227.0,84226.0,0.178103]
[1744846630268,0.0593686,84227.0,84220.0,0.097]
[1744846630269,0.1187402,84227.0,84224.0,0.1187401]
[1744846630461,0.1187402,84227.0,84225.0,0.0638]
[1744846630665,0.0593694,84226.0,84225.0,0.0638]
[1744846631070,0.0914694,84226.0,84225.0,0.0638]
[1744846631272,0.1221694,84226.0,84225.0,0.0638]
[1744846631874,0.1221694,84226.0,84225.0,0.0316]
[1744846632075,0.1231694,84226.0,84225.0,0.0316]
[1744846632279,0.1231694,84226.0,84225.0,0.03268]
[1744846632280,0.1241694,84226.0,84225.0,0.03268]
[1744846634580,0.1231694,84226.0,84225.0,0.03168]
[1744846634770,0.1281694,84226.0,84225.0,0.03168]
[1744846634971,0.5395694,84226.0,84225.0,0.03168]
[1744846638484,0.9003694,84226.0,84225.0,0.03168]
[1744846638986,0.5395694,84226.0,84225.0,0.03168]
[1744846639284,0.9003694,84226.0,84225.0,0.03168]
[1744846640385,0.9003694,84226.0,84225.0,0.02054108]
[1744846641280,0.9003694,84226.0,84225.0,0.01162915]
[1744846641986,0.9003694,84226.0,84225.0,8e-05]
[1744846642487,0.1187489,84218.0,84217.0,0.0319]
[1744846642682,0.4795489,84218.0,84217.0,0.0319]
[1744846643589,0.5458489,84218.0,84217.0,0.0319]
[1744846644181,0.5458489,84218.0,84217.0,0.0622]
[1744846644491,0.5488489,84218.0,84217.0,0.0622]
[1744846645387,0.5478489,84218.0,84217.0,0.0622]
[1744846645590,0.5498489,84218.0,84217.0,0.0622]
[1744846645788,0.5478489,84218.0,84217.0,0.0622]
[1744846645990,0.5498489,84218.0,84217.0,0.0622]
[1744846647589,0.5498489,84218.0,84217.0,0.0303]
[1744846647985,0.1187503,84217.0,84216.0,0.000108]
[1744846648292,0.1835503,84217.0,84216.0,0.000108]
[1744846648495,0.1187574,84212.0,84211.0,0.0311]
[1744846649278,0.1835574,84212.0,84211.0,0.0311]
[1744846650584,0.1845574,84212.0,84211.0,0.0321]
[1744846650784,0.1855574,84212.0,84211.0,0.0321]
[1744846650986,0.5463574,84212.0,84211.0,0.0321]
[1744846651788,0.1855574,84212.0,84211.0,0.0321]
[1744846651994,0.5463574,84212.0,84211.0,0.0321]
[1744846653296,0.4815574,84212.0,84211.0,0.0321]
[1744846653700,0.4815574,84212.0,84211.0,0.1508588]
[1744846654397,0.4815574,84212.0,84211.0,0.0321]
[1744846656899,0.5147574,84212.0,84211.0,0.0321]
[1744846658801,0.5469574,84212.0,84211.0,0.0321]
[1744846659101,0.5147574,84212.0,84211.0,0.0321]
[1744846666297,0.1539574,84212.0,84211.0,0.0321]
[1744846666492,0.5147574,84212.0,84211.0,0.0321]
[1744846667697,0.5147574,84212.0,84211.0,0.02326726]
[1744846672105,0.8755574,84212.0,84211.0,0.02326726]
[1744846673401,0.8423574,84212.0,84211.0,0.02326726]
[1744846673597,0.8423574,84212.0,84211.0,0.14202606]
[1744846678811,0.4815574,84212.0,84211.0,0.14202606]
[1744846688121,0.4815574,84212.0,84211.0,0.02326726]
[1744846688324,0.5125574,84212.0,84211.0,0.02326726]
[1744846688621,0.5434574,84212.0,84211.0,0.001]
[1744846688814,0.5434574,84212.0,84211.0,0.00108]
[1744846689015,0.5434574,84212.0,84211.0,0.001]
[1744846689216,0.5434574,84212.0,84211.0,0.00108]
[1744846689418,0.5434574,84212.0,84211.0,0.001]
[1744846689615,0.5434574,84212.0,84211.0,0.00108]
[1744846701437,0.5534574,84212.0,84211.0,0.00108]
[1744846706023,0.1187687,84204.0,84203.0,0.06318]
[1744846706228,0.4895687,84204.0,84203.0,0.09468]
[1744846706818,0.5538687,84204.0,84203.0,0.09468]
[1744846707224,0.56673286,84204.0,84203.0,0.09568]
[1744846710330,0.5548687,84204.0,84203.0,0.09568]
[1744846711035,0.56685431,84204.0,84203.0,0.09568]
[1744846711626,0.5548687,84204.0,84203.0,0.09568]
[1744846713837,0.5548687,84204.0,84203.0,0.09576]
[1744846714028,0.5548687,84204.0,84203.0,0.09568]
[1744846714334,0.5548687,84204.0,84203.0,0.09576]
[1744846716438,0.5548687,84204.0,84203.0,0.09568]
[1744846716636,0.5548687,84204.0,84203.0,0.09576]
[1744846717435,0.5548687,84204.0,84203.0,0.09568]
[1744846717633,0.5548687,84204.0,84203.0,0.09576]
[1744846720040,0.5548687,84204.0,84203.0,0.09568]
[1744846720228,0.5548687,84204.0,84203.0,0.09576]
[1744846720433,0.5548687,84204.0,84203.0,0.09568]
[1744846720646,0.5548687,84204.0,84203.0,0.09576]
[1744846722645,0.5548687,84204.0,84203.0,0.0846179]
[1744846722947,0.1187884,84190.0,84189.0,0.01]
[1744846723131,0.1187926,84187.0,84186.0,0.063]
[1744846723331,0.1287926,84187.0,84186.0,0.063]
[1744846723732,0.1287926,84187.0,84186.0,0.06308]
[1744846724833,0.1287926,84187.0,84186.0,0.09378]
[1744846725436,0.1297926,84187.0,84186.0,0.09378]
[1744846731442,0.4905926,84187.0,84186.0,0.09378]
[1744846731952,0.011,84187.0,84186.0,0.212574]
[1744846732342,0.1297926,84187.0,84186.0,0.212574]
[1744846733137,0.1297926,84187.0,84186.0,0.09378]
[1744846733546,0.1297926,84187.0,84186.0,0.0937]
[1744846733852,0.1297926,84187.0,84186.0,0.09378]
[1744846736651,0.011,84187.0,84186.0,0.212574]
[1744846736856,0.011,84187.0,84186.0,0.573374]
[1744846737153,0.1297926,84187.0,84186.0,0.573374]
[1744846737351,0.001,84187.0,84186.0,0.823374]
[1744846737550,0.3608,84209.0,84194.0,0.1187828]
[1744846737752,0.10372559,84204.0,84194.0,0.4795828]
[1744846737951,0.10372559,84204.0,84194.0,0.3608]
[1744846737952,0.11895949,84195.0,84194.0,0.3608]
[1744846738158,0.11895949,84195.0,84194.0,0.4221]
[1744846738353,0.11895949,84195.0,84194.0,0.5408828]
[1744846738551,0.11895949,84195.0,84194.0,0.0613]
[1744846738946,0.11995949,84195.0,84194.0,0.0613]
[1744846739550,0.11995949,84195.0,84194.0,0.1800828]
[1744846739745,0.11995949,84195.0,84194.0,0.1801628]
[1744846740457,0.48075949,84195.0,84194.0,0.1801628]
[1744846740857,0.11995949,84195.0,84194.0,0.1801628]
[1744846741758,0.48075949,84195.0,84194.0,0.1801628]
[1744846741956,0.48075949,84195.0,84194.0,0.06138]
[1744846742761,0.54335949,84195.0,84194.0,0.06138]
[1744846742956,0.54335949,84195.0,84194.0,0.0613]
[1744846743166,0.54335949,84195.0,84194.0,0.03098]
[1744846743552,0.1187884,84190.0,84189.0,0.000108]
[1744846743950,0.1187955,84185.0,84184.0,0.0314]
[1744846744147,0.4795955,84185.0,84184.0,0.0314]
[1744846745161,0.5107955,84185.0,84184.0,0.0314]
[1744846746052,0.1187997,84182.0,84181.0,0.000108]
[1744846746363,0.1187997,84182.0,84165.0,0.01]
[1744846746364,0.0594089,84170.0,84165.0,0.01]
[1744846746559,0.0594089,84170.0,84153.0,0.18150373]
[1744846746560,0.7316,84167.0,84162.0,0.0302]
[1744846746755,0.1288265,84163.0,84162.0,0.0302]
[1744846748260,0.1298265,84163.0,84162.0,0.0302]
[1744846749362,0.1188477,84148.0,84145.0,0.18150373]
[1744846749658,0.4896477,84148.0,84147.0,0.00521807]
[1744846750860,0.5197477,84148.0,84147.0,0.00521807]
[1744846751255,0.5207477,84148.0,84147.0,0.00521807]
[1744846751448,0.5207477,84148.0,84147.0,0.00511007]
[1744846751652,0.5207477,84148.0,84147.0,0.00519007]
[1744846755064,0.5207477,84148.0,84147.0,7e-08]
[1744846755261,0.118859,84140.0,84139.0,0.000108]
[1744846755560,0.1188731,84130.0,84129.0,0.00026572]
[1744846755763,0.4896731,84130.0,84129.0,0.00026572]
[1744846756063,0.1188802,84125.0,84124.0,0.0318]
[1744846756262,0.1188802,84125.0,84124.0,0.000108]
[1744846756263,0.1288802,84125.0,84124.0,0.000108]
[1744846756468,0.1188844,84122.0,84121.0,0.00511165]
[1744846756665,0.1288844,84122.0,84121.0,0.00511165]
[1744846757464,0.1288844,84122.0,84121.0,0.12399745]
[1744846758661,0.001,84130.0,84129.0,0.1188745]
[1744846758867,0.001,84130.0,84129.0,0.4796745]
[1744846759166,0.1188648,84136.0,84135.0,0.1188661]
[1744846759357,0.0001782,84138.0,84137.0,0.1188632]
[1744846759558,0.1782741,84151.0,84142.0,0.0594281]
[1744846759758,0.031,84155.0,84150.0,0.118838]
[1744846759958,0.149839,84155.0,84154.0,0.1188392]
[1744846760957,0.1782621,84154.0,84153.0,0.1188401]
[1744846761160,0.2088621,84154.0,84153.0,0.1188401]
[1744846761373,0.2398621,84154.0,84153.0,0.1188401]
[1744846762366,0.0904201,84154.0,84153.0,0.1188401]
[1744846762767,0.1188406,84153.0,84152.0,0.0308]
[1744846763267,0.1493406,84153.0,84152.0,0.0308]
[1744846763459,0.1188477,84148.0,84147.0,0.1226242]
[1744846763663,0.1188477,84148.0,84147.0,0.0632]
[1744846764066,0.1188477,84148.0,84147.0,0.1821291]
[1744846764268,0.0594218,84151.0,84150.0,0.1188449]
[1744846765677,0.1782695,84151.0,84150.0,0.1188449]
[1744846766272,0.1812695,84151.0,84150.0,0.1188449]
[1744846766475,0.1842695,84151.0,84150.0,0.1188449]
[1744846767669,0.1812695,84151.0,84150.0,0.1188449]
[1744846767975,0.1842695,84151.0,84150.0,0.1188449]
[1744846770175,0.1188477,84148.0,84147.0,0.1821285]
[1744846770362,0.1188477,84148.0,84147.0,0.1513285]
[1744846771277,0.1208477,84148.0,84147.0,0.1816285]
[1744846771476,0.1208477,84148.0,84147.0,0.1815485]
[1744846771678,0.1208477,84148.0,84147.0,0.1816285]
[1744846771978,0.1228477,84148.0,84147.0,0.1816285]
[1744846773077,0.1238477,84148.0,84147.0,0.1816285]
[1744846773579,0.1248477,84148.0,84147.0,0.1816285]
[1744846774173,0.1218477,84148.0,84147.0,0.1816285]
[1744846774375,0.1248477,84148.0,84147.0,0.1816285]
[1744846776073,0.006,84148.0,84147.0,0.1816285]
[1744846776378,0.1248477,84148.0,84147.0,0.1816285]
[1744846777275,0.1218477,84148.0,84147.0,0.1816285]
[1744846777472,0.1238477,84148.0,84147.0,0.1816285]
[1744846778367,0.005,84148.0,84147.0,0.1816285]
[1744846779579,0.002,84148.0,84147.0,0.1816285]
[1744846779781,0.004,84148.0,84147.0,0.1816285]
[1744846780172,0.002,84148.0,84147.0,0.1816285]
[1744846780472,0.004,84148.0,84147.0,0.1816285]
[1744846784380,0.0303,84156.0,84147.0,0.1816285]
[1744846784381,0.00017831,84163.0,84162.0,0.1188279]
[1744846784877,0.0313,84170.0,84169.0,0.118818]
[1744846785781,0.0313,84170.0,84169.0,0.149018]
[1744846786283,0.1501166,84170.0,84169.0,0.149018]
[1744846786476,0.1561166,84170.0,84169.0,0.118818]
[1744846786786,0.1641166,84170.0,84169.0,0.118818]
[1744846787779,0.0453,84170.0,84169.0,0.118818]
[1744846788583,0.1641166,84170.0,84169.0,0.118818]
[1744846791086,0.1641166,84170.0,84169.0,0.151718]
[1744846792078,0.0453,84170.0,84169.0,0.151718]
[1744846792586,0.005,84176.0,84175.0,0.1188096]
[1744846793084,0.005,84176.0,84175.0,0.1841096]
[1744846793881,0.1238082,84176.0,84175.0,0.1841096]
[1744846794393,0.1238082,84176.0,84175.0,0.1851096]
[1744846794586,0.1248082,84176.0,84175.0,0.1851096]
[1744846795290,0.1238082,84176.0,84175.0,0.1851096]
[1744846795484,0.1248082,84176.0,84175.0,0.1851096]
[1744846796091,0.1560082,84176.0,84175.0,0.1851096]
[1744846796280,0.006,84176.0,84175.0,0.1851096]
[1744846797182,0.0382,84176.0,84175.0,0.1851096]
[1744846797382,0.0689,84176.0,84175.0,0.1851096]
[1744846797585,0.0679,84176.0,84175.0,0.1851096]
[1744846797785,0.0689,84176.0,84175.0,0.1851096]
[1744846798094,0.0367,84176.0,84175.0,0.1851096]
[1744846798389,0.0357,84176.0,84175.0,0.1861096]
[1744846798893,0.0357,84176.0,84175.0,0.1881096]
[1744846799282,0.0357,84176.0,84175.0,0.1891096]
[1744846801490,0.1545082,84176.0,84175.0,0.002]
[1744846801681,0.1872082,84176.0,84175.0,0.1208096]
[1744846801882,0.1872082,84176.0,84175.0,0.00208]
[1744846802087,0.4372082,84176.0,84175.0,0.00208]
[1744846802285,0.1872082,84176.0,84175.0,0.00208]
[1744846802480,0.1872082,84176.0,84175.0,0.002]
[1744846802679,0.1872082,84176.0,84175.0,0.00208]
[1744846803388,0.1872082,84176.0,84175.0,0.002]
[1744846803590,0.1872082,84176.0,84175.0,0.00208]
[1744846803788,0.1892082,84176.0,84175.0,0.00208]
[1744846803983,0.1188195,84168.0,84167.0,0.0001782]
[1744846804190,0.4796195,84168.0,84167.0,0.0001782]
[1744846805192,0.4796195,84168.0,84167.0,0.0022582]
[1744846807793,0.4826195,84168.0,84167.0,0.0002582]
[1744846807992,0.1248195,84168.0,84167.0,0.1190791]
[1744846808389,0.1218195,84168.0,84167.0,0.1190791]
[1744846808583,0.4856195,84168.0,84167.0,0.1190791]
[1744846808989,0.4846195,84168.0,84167.0,0.1190791]
[1744846810690,0.4836195,84168.0,84167.0,0.1190791]
[1744846814595,0.004,84168.0,84167.0,0.1190791]
[1744846814796,0.005,84176.0,84173.0,0.0594056]
[1744846814992,0.005,84176.0,84175.0,0.1188096]
[1744846815195,0.01166962,84190.0,84174.0,0.0972]
[1744846815196,0.0593951,84189.0,84174.0,0.0972]
[1744846815497,0.1507934,84187.0,84186.0,0.1781876]
[1744846815688,0.1507934,84187.0,84186.0,0.2753876]
[1744846816591,0.1507934,84187.0,84186.0,0.1565964]
[1744846816791,0.1813934,84187.0,84186.0,0.1565964]
[1744846818297,0.1833934,84187.0,84186.0,0.1565964]
[1744846821288,0.002,84187.0,84186.0,0.1565964]
[1744846821490,0.1207926,84187.0,84186.0,0.1565964]
[1744846821985,0.002,84187.0,84186.0,0.1565964]
[1744846823894,0.0593951,84189.0,84188.0,0.2375739]
[1744846824987,0.0923915,84194.0,84188.0,0.0593936]
[1744846825188,0.1517828,84194.0,84193.0,0.1187842]
[1744846825687,0.1187828,84194.0,84193.0,0.1187842]
[1744846826192,0.1187828,84194.0,84193.0,0.1822842]
[1744846826391,0.1217828,84194.0,84193.0,0.1822842]
[1744846826996,0.003,84194.0,84193.0,0.1822842]
[1744846827296,0.006,84194.0,84193.0,0.1822842]
[1744846828706,0.1247828,84194.0,84193.0,0.1822842]
[1744846829003,0.1857828,84194.0,84193.0,0.1822842]
[1744846831903,0.1857828,84194.0,84193.0,0.1494642]
[1744846835709,0.1247828,84194.0,84193.0,0.1494642]
[1744846836208,0.1548828,84194.0,84193.0,0.1494642]
[1744846836708,0.0361,84194.0,84193.0,0.1494642]
[1744846836908,0.1548828,84194.0,84193.0,0.1494642]
[1744846839209,0.1247828,84194.0,84193.0,0.1494642]
[1744846839407,0.006,84194.0,84193.0,0.1494642]
[1744846844916,0.0383,84194.0,84193.0,0.1494642]
[1744846852112,0.006,84194.0,84193.0,0.1494642]
[1744846852313,0.0376,84194.0,84193.0,0.1494642]
[1744846852914,0.1563828,84194.0,84193.0,0.1494642]
[1744846853114,0.1864828,84194.0,84193.0,0.1494642]
[1744846862127,0.1864828,84194.0,84193.0,0.1493842]
[1744846865126,0.0677,84194.0,84193.0,0.1493842]
[1744846865632,0.0376,84194.0,84193.0,0.1493842]
[1744846866024,0.005,84202.0,84193.0,0.4014]
[1744846866228,0.0306,84207.0,84206.0,0.1187658]
[1744846866731,0.1493644,84207.0,84206.0,0.1187658]
[1744846867123,0.1493644,84207.0,84206.0,0.1498658]
[1744846867626,0.0306,84207.0,84206.0,0.1498658]
[1744846867823,0.1493644,84207.0,84206.0,0.1498658]
[1744846868024,0.1523644,84207.0,84206.0,0.1498658]
[1744846868228,0.0336,84207.0,84206.0,0.1498658]
[1744846868929,0.0366,84207.0,84206.0,0.15880978]
[1744846869121,0.0593805,84210.0,84209.0,0.1187616]
[1744846869326,0.3608,84213.0,84212.0,0.1187574]
[1744846869931,0.479556,84213.0,84212.0,0.1187574]
[1744846870237,0.118756,84213.0,84212.0,0.4795574]
[1744846870629,0.121756,84213.0,84212.0,0.4795574]
[1744846870936,0.1187588,84211.0,84210.0,0.032]
[1744846871127,0.118763,84208.0,84207.0,0.237526]
[1744846871634,0.118763,84208.0,84207.0,0.237606]
[1744846871939,0.118763,84208.0,84207.0,0.269606]
[1744846873122,0.149063,84208.0,84207.0,0.269606]
[1744846873328,0.151063,84208.0,84207.0,0.269606]
[1744846873638,0.153063,84208.0,84207.0,0.269606]
[1744846874634,0.153063,84208.0,84207.0,0.302106]
[1744846874939,0.153063,84208.0,84207.0,0.334006]
[1744846876736,0.153063,84208.0,84207.0,0.302106]
[1744846879939,0.0593807,84210.0,84209.0,0.1187616]
[1744846881148,0.0623807,84210.0,84209.0,0.1187616]
[1744846881339,0.0653807,84210.0,84209.0,0.1187616]
[1744846883240,0.006,84210.0,84209.0,0.1187616]
[1744846892048,0.0001782,84215.0,84214.0,0.1187546]
[1744846892951,0.0001782,84215.0,84214.0,0.1844546]
[1744846893457,0.1229313,84215.0,84214.0,0.1844546]
[1744846893647,0.1553313,84215.0,84214.0,0.1844546]
[1744846894156,0.1553313,84215.0,84209.0,0.0593807]
[1744846894157,0.1781437,84210.0,84209.0,0.0593807]
[1744846894350,0.0593807,84210.0,84209.0,0.0593807]
[1744846894552,0.1531807,84210.0,84209.0,0.0593807]
[1744846894752,0.1531807,84210.0,84209.0,0.0594607]
[1744846896156,0.1541807,84210.0,84209.0,0.0594607]
[1744846900263,0.001,84210.0,84209.0,0.0594607]
[1744846900451,0.0001782,84215.0,84211.0,0.0593787]
[1744846900653,0.0001782,84215.0,84214.0,0.1187546]
[1744846901652,0.3608,84221.0,84220.0,0.1187461]
[1744846902256,0.4795447,84221.0,84220.0,0.1187461]
[1744846902759,0.4845447,84221.0,84220.0,0.1187461]
[1744846903556,0.3658,84221.0,84220.0,0.1187461]
[1744846903952,0.3668,84221.0,84220.0,0.1187461]
[1744846904155,0.006,84221.0,84220.0,0.1187461]
[1744846905760,0.1247447,84221.0,84220.0,0.1187461]
[1744846906668,0.006,84221.0,84220.0,0.1187461]
[1744846906848,0.3658,84228.0,84227.0,0.1187362]
[1744846907165,0.3658,84228.0,84226.0,0.1498362]
[1744846907166,0.1187362,84227.0,84226.0,0.1498362]
[1744846907354,0.3959,84228.0,84220.0,0.1187398]
[1744846907355,0.1781225,84221.0,84220.0,0.1187398]
[1744846907557,0.5389225,84221.0,84220.0,0.1187398]
[1744846908159,0.1187461,84220.0,84219.0,0.0001458]
[1744846908357,0.2082197,84220.0,84219.0,0.1187475]
[1744846908664,0.2082197,84220.0,84219.0,0.1188275]
[1744846909563,0.2082197,84220.0,84219.0,0.1208275]
[1744846912665,0.2082197,84220.0,84219.0,0.00208]
[1744846913859,0.0593796,84211.0,84204.0,0.0001782]
[1744846914061,0.7316,84205.0,84204.0,0.0001458]
[1744846914264,0.1187771,84198.0,84197.0,0.00019683]
[1744846914463,0.1187785,84197.0,84196.0,0.1489797]
[1744846914762,0.1920785,84197.0,84196.0,0.1489797]
[1744846915865,0.1920785,84197.0,84196.0,0.1529797]
[1744846918364,0.2250785,84197.0,84196.0,0.1509797]
[1744846918867,0.5858785,84197.0,84196.0,0.1509797]
[1744846920462,0.1287785,84197.0,84196.0,0.1509797]
[1744846920667,0.01,84197.0,84196.0,0.1509797]
[1744846920870,0.3608,84202.0,84201.0,0.1187729]
[1744846921469,0.4795715,84202.0,84201.0,0.1187729]
[1744846921669,0.1187715,84202.0,84201.0,0.1833729]
[1744846921971,0.1187715,84202.0,84201.0,0.1843729]
[1744846924576,0.1187715,84202.0,84201.0,0.1833729]
[1744846924775,0.1187715,84202.0,84201.0,0.1863729]
[1744846926474,0.11894549,84205.0,84204.0,0.1187687]
[1744846927478,0.11894529,84205.0,84204.0,0.1187687]
[1744846928077,0.11894529,84205.0,84204.0,0.1207687]
[1744846928969,0.11894529,84205.0,84204.0,0.1187687]
[1744846929165,0.11894529,84205.0,84204.0,0.006]
[1744846929479,0.57474529,84205.0,84204.0,0.1248487]
[1744846936976,0.00017809,84205.0,84204.0,0.1248487]
[1744846937176,0.1187568,84213.0,84212.0,0.1781326]
[1744846937374,0.1187568,84213.0,84212.0,0.2429326]
[1744846938881,0.1187568,84213.0,84212.0,0.2449326]
[1744846939087,0.1187542,84215.0,84214.0,0.1781283]
[1744846941177,0.1187542,84215.0,84214.0,0.1801283]
[1744846942289,0.1187542,84215.0,84214.0,0.1811283]
[1744846943889,0.1187542,84215.0,84214.0,0.1801283]
[1744846945683,0.00017809,84221.0,84220.0,0.1187461]
[1744846946075,0.11892279,84221.0,84220.0,0.1187461]
[1744846946688,0.00017809,84221.0,84220.0,0.1187461]
[1744846946890,0.00117809,84221.0,84220.0,0.1187461]
[1744846947884,0.1187285,84233.0,84227.0,0.1187362]
[1744846948187,0.0593647,84232.0,84227.0,0.1187362]
[1744846948376,0.1187339,84229.0,84227.0,0.1187362]
[1744846948682,0.4845348,84228.0,84227.0,0.1187362]
[1744846948883,0.4845348,84228.0,84227.0,0.1808362]
[1744846949385,0.4845348,84228.0,84227.0,0.1809162]
[1744846949785,0.3658,84228.0,84227.0,0.1809162]
[1744846950087,0.3668,84228.0,84227.0,0.1809162]
[1744846950276,0.006,84228.0,84227.0,0.1809162]
[1744846950890,0.1247348,84228.0,84227.0,0.1809162]
[1744846955078,0.006,84228.0,84227.0,0.1809162]
[1744846965792,0.1780689,84248.0,84247.0,0.1187038]
[1744846967289,0.1800689,84248.0,84247.0,0.1187038]
[1744846967802,0.1800689,84248.0,84247.0,0.1513038]
[1744846971596,0.5408689,84248.0,84247.0,0.1513038]
[1744846986022,0.1800689,84248.0,84247.0,0.1513038]
[1744846986216,0.2116689,84248.0,84247.0,0.1513038]
[1744846986716,0.2436689,84248.0,84247.0,0.0326]
[1744846986917,0.2436689,84248.0,84247.0,0.03268]
[1744846987825,0.2436689,84248.0,84247.0,8e-05]
[1744846990119,0.2436689,84248.0,84247.0,0.118788]
[1744846993124,0.6044689,84248.0,84247.0,0.118788]
[1744846993729,0.2436689,84248.0,84247.0,0.118788]
[1744846993929,0.6044689,84248.0,84247.0,0.118788]
[1744846994131,0.2436689,84248.0,84247.0,0.118788]
[1744846994324,0.6044689,84248.0,84247.0,0.118788]
[1744846994524,0.5728689,84248.0,84247.0,0.118788]
[1744846995220,0.5728689,84248.0,84247.0,0.181088]
[1744846996330,0.5408689,84248.0,84247.0,0.181088]
[1744847000227,0.3608,84272.0,84247.0,0.06238]
[1744847000434,0.1780463,84258.0,84257.0,0.0593462]
[1744847000727,0.0593475,84258.0,84257.0,0.0593462]
[1744847000932,0.0593481,84256.0,84253.0,0.1804989]
[1744847001129,0.1186982,84254.0,84253.0,0.0618]
[1744847001534,0.1186982,84254.0,84253.0,0.1804996]
[1744847001727,0.1820982,84254.0,84253.0,0.1491796]
[1744847001929,0.1820982,84254.0,84253.0,0.03048]
[1744847002133,0.1820982,84254.0,84253.0,0.1491796]
[1744847002529,0.1850982,84254.0,84253.0,0.1491796]
[1744847003133,0.1820982,84254.0,84253.0,0.1501796]
[1744847005133,0.1186982,84254.0,84253.0,0.1501796]
[1744847029252,0.2112456,84256.0,84255.0,0.1186968]
[1744847029855,0.2112456,84256.0,84255.0,0.1499968]
[1744847030357,0.1780456,84256.0,84255.0,0.1828968]
[1744847032058,0.0593481,84256.0,84255.0,0.1828968]
[1744847035467,0.0593481,84256.0,84255.0,0.1499968]
[1744847035667,0.1235481,84256.0,84255.0,0.1499968]
[1744847042373,0.0302,84257.0,84256.0,0.1186954]
[1744847042675,0.237386,84260.0,84259.0,0.1186911]
[1744847042874,0.1186925,84258.0,84257.0,0.0305]
[1744847043072,0.1186925,84258.0,84257.0,0.1186939]
[1744847043275,0.178057,84253.0,84252.0,0.0593501]
[1744847043583,0.538857,84253.0,84252.0,0.0594581]
[1744847043766,0.538857,84253.0,84252.0,0.1781591]
[1744847043971,0.538857,84253.0,84252.0,0.1780511]
[1744847044273,0.0329,84256.0,84252.0,0.1780511]
[1744847044274,0.0593484,84255.0,84254.0,0.1186982]
[1744847044579,0.0309,84259.0,84258.0,0.1186925]
[1744847044776,0.1186911,84259.0,84258.0,0.1186925]
[1744847045170,0.1186911,84259.0,84258.0,0.1486925]
[1744847047372,0.1196911,84259.0,84258.0,0.1486925]
[1744847051982,0.001,84259.0,84258.0,0.1486925]
[1744847055585,0.0593344,84275.0,84274.0,0.11867]
[1744847057178,0.4201344,84275.0,84274.0,0.11867]
[1744847057383,0.4241344,84275.0,84274.0,0.11867]
[1744847057894,0.4543344,84275.0,84274.0,0.11867]
[1744847058388,0.0935344,84275.0,84274.0,0.11867]
[1744847058584,0.004,84275.0,84274.0,0.47947]
[1744847058790,0.004,84275.0,84274.0,0.11867]
[1744847059982,0.059333,84277.0,84276.0,0.1186658]
[1744847060187,0.059333,84277.0,84276.0,0.1489658]
[1744847061091,0.062333,84277.0,84276.0,0.1489658]
[1744847061284,0.062333,84277.0,84276.0,0.1818658]
[1744847062292,0.003,84277.0,84276.0,0.1818658]
[1744847063794,0.1216658,84277.0,84276.0,0.1818658]
[1744847069090,0.003,84277.0,84276.0,0.1818658]
[1744847070894,0.1186799,84267.0,84266.0,0.00017809]
[1744847071093,0.4794799,84267.0,84266.0,0.03147809]
[1744847071485,0.4794799,84267.0,84266.0,0.00017809]
[1744847071786,0.5107799,84267.0,84266.0,0.00025809]
[1744847071991,0.1186869,84262.0,84261.0,0.031408]
[1744847072588,0.1186869,84262.0,84261.0,0.0313]
[1744847073088,0.1186869,84262.0,84261.0,0.03138]
[1744847073289,0.1186869,84262.0,84261.0,0.0313]
[1744847073490,0.1186869,84262.0,84261.0,0.03138]
[1744847073789,0.1186869,84262.0,84261.0,0.03238]
[1744847074693,0.13060477,84262.0,84261.0,0.03238]
[1744847076297,0.1186869,84262.0,84261.0,0.03238]
[1744847077196,0.1186869,84262.0,84261.0,0.1510683]
[1744847078404,0.1186865,84263.0,84262.0,0.1780269]
[1744847078704,0.1186865,84263.0,84262.0,0.2392269]
[1744847080193,0.1186848,84264.0,84263.0,0.1780248]
[1744847080393,0.1186848,84264.0,84263.0,0.2412248]
[1744847089203,0.1187094,84246.0,84242.0,0.3608]
[1744847089404,0.1187137,84243.0,84242.0,0.0329]
[1744847089701,0.1287137,84243.0,84242.0,0.0329]
[1744847091006,0.1589137,84243.0,84242.0,0.0329]
[1744847091306,0.1589137,84243.0,84242.0,0.0349]
[1744847092202,0.1912137,84243.0,84242.0,0.0349]
[1744847092409,0.1922137,84243.0,84242.0,0.0349]
[1744847094205,0.1297137,84243.0,84242.0,0.0349]
[1744847098313,0.1197137,84243.0,84242.0,0.0349]
[1744847099507,0.1197137,84243.0,84242.0,0.03498]
[1744847099899,0.1197137,84243.0,84242.0,0.0349]
[1744847100105,0.1187475,84219.0,84218.0,0.0001458]
[1744847100302,0.1187475,84219.0,84196.0,0.18150373]
[1744847100303,0.118787,84191.0,84184.0,0.0321]
[1744847100502,0.1187955,84185.0,84184.0,0.0321]
[1744847100707,0.4895955,84185.0,84184.0,0.0321]
[1744847100907,0.3708,84185.0,84184.0,0.0321]
[1744847101108,0.3209,84185.0,84184.0,0.4009769]
[1744847101307,0.00017809,84193.0,84192.0,0.1187856]
[1744847101509,0.36097809,84193.0,84192.0,0.1187856]
[1744847101709,0.47976229,84193.0,84192.0,0.1835856]
[1744847103507,0.47976229,84193.0,84192.0,0.1865856]
[1744847104111,0.47976229,84193.0,84192.0,0.1855856]
[1744847105113,0.47976229,84193.0,84172.0,0.0001458]
[1744847105114,0.1188067,84177.0,84172.0,0.0001458]
[1744847105304,0.8404067,84177.0,84173.0,0.0369085]
[1744847105613,0.118811,84174.0,84173.0,0.0051085]
[1744847106111,0.118811,84174.0,84173.0,0.0051885]
[1744847106304,0.118811,84174.0,84165.0,0.0318]
[1744847106305,0.1188223,84166.0,84165.0,0.0318]
[1744847106504,0.4796223,84166.0,84165.0,0.0318]
[1744847106706,0.4796223,84166.0,84165.0,0.03188]
[1744847106907,0.4796223,84166.0,84165.0,0.0318]
[1744847107103,0.4796223,84166.0,84165.0,0.03188]
[1744847107412,0.4806223,84166.0,84165.0,0.04188]
[1744847107915,0.4806223,84166.0,84165.0,0.04488]
[1744847108215,0.001,84166.0,84165.0,0.1637037]
[1744847108710,0.3618,84166.0,84165.0,0.1637037]
[1744847108910,0.3608,84166.0,84165.0,0.1537037]